[Event "Live Chess"]
[Site "Chess.com"]
[Date "2021.02.28"]
[Round "-"]
[White "Kumar, Ishan"]
[Black "Ghatkar, Aaratrika"]
[Result "1-0"]
[BlackElo "902"]
[CurrentPosition "2N4k/8/6Qp/4B1p1/p4P2/3P2P1/PP4K1/8 b - -"]
[ECO "C46"]
[ECOUrl "https://www.chess.com/openings/Three-Knights-Opening"]
[EndDate "2021.02.28"]
[EndTime "15:03:51"]
[Link "https://www.chess.com/live/game/8261014731"]
[StartTime "14:18:36"]
[Termination "ISK_GA won by checkmate"]
[TimeControl "1500+10"]
[Timezone "UTC"]
[UTCDate "2021.02.28"]
[UTCTime "14:18:36"]
[WhiteElo "1487"]

1. e4 { [%clk 0:25:10] } 1... e5 { [%clk 0:25:10] } 2. Nf3 { [%clk 0:25:15.6] } 2... Nc6 { [%clk 0:25:17.5] } 3. Nc3 { [%clk 0:25:16.3] } 3... Bc5 { [%clk 0:25:22.2] } 4. Nxe5 { [%clk 0:25:22.9] } 4... Nf6 { [%clk 0:25:03.9] } 5. Nxc6 { [%clk 0:25:27.3] } 5... dxc6 { [%clk 0:25:10.1] } 6. h3 { [%clk 0:25:34.2] } 6... O-O { [%clk 0:25:11.4] } 7. d3 { [%clk 0:25:42.3] } 7... Re8 { [%clk 0:25:16.8] } 8. Be2 { [%clk 0:24:44] } 8... Qe7 { [%clk 0:24:55.9] } 9. O-O { [%clk 0:24:21.5] } 9... Bd7 { [%clk 0:23:57.5] } 10. Bf3 { [%clk 0:24:23.4] } 10... Qe5 { [%clk 0:23:36] } 11. Bd2 { [%clk 0:23:57.2] } 11... Bd6 { [%clk 0:23:41.7] } 12. g3 { [%clk 0:23:32.6] } 12... Bxh3 { [%clk 0:23:40.3] } 13. Bg2 { [%clk 0:22:50.7] } 13... Bxg2 { [%clk 0:23:39.8] } 14. Kxg2 { [%clk 0:22:50.7] } 14... Nh5 { [%clk 0:23:26.2] } 15. f4 { [%clk 0:22:23.5] } 15... Qd4 { [%clk 0:23:07.1] } 16. Qxh5 { [%clk 0:22:19.1] } 16... Bc5 { [%clk 0:22:31.7] } 17. Qf3 { [%clk 0:21:38.2] } 17... Re6 { [%clk 0:22:28.1] } 18. Rfe1 { [%clk 0:20:47.8] } 18... Rg6 { [%clk 0:22:26.9] } 19. Be3 { [%clk 0:20:15.1] } 19... Qd6 { [%clk 0:21:45.2] } 20. e5 { [%clk 0:19:47.4] } 20... Qd7 { [%clk 0:20:49.6] } 21. Bxc5 { [%clk 0:18:58.3] } 21... Rh6 { [%clk 0:20:26.1] } 22. Rh1 { [%clk 0:19:03.7] } 22... Rxh1 { [%clk 0:19:36.4] } 23. Rxh1 { [%clk 0:19:08.7] } 23... b6 { [%clk 0:19:21.7] } 24. Be3 { [%clk 0:18:53.4] } 24... Rd8 { [%clk 0:19:14.3] } 25. Qh5 { [%clk 0:18:28.7] } 25... h6 { [%clk 0:19:12.8] } 26. Qh3 { [%clk 0:17:26] } 26... Qe7 { [%clk 0:18:02.6] } 27. Qf5 { [%clk 0:17:06] } 27... a5 { [%clk 0:17:23.8] } 28. Qe4 { [%clk 0:15:17.5] } 28... c5 { [%clk 0:17:19.2] } 29. Nd5 { [%clk 0:14:39.7] } 29... Qd7 { [%clk 0:16:43.3] } 30. c4 { [%clk 0:14:41.4] } 30... c6 { [%clk 0:16:49.1] } 31. Nxb6 { [%clk 0:14:44] } 31... Qg4 { [%clk 0:15:56.5] } 32. Qf3 { [%clk 0:14:13.8] } 32... Qe6 { [%clk 0:15:20] } 33. Bxc5 { [%clk 0:13:24.4] } 33... f6 { [%clk 0:13:03.6] } 34. Re1 { [%clk 0:12:41.3] } 34... Qf5 { [%clk 0:12:47.8] } 35. Bd6 { [%clk 0:12:39] } 35... fxe5 { [%clk 0:12:43.2] } 36. Rxe5 { [%clk 0:12:15.8] } 36... Qf6 { [%clk 0:12:38.7] } 37. c5 { [%clk 0:12:06.8] } 37... Kf7 { [%clk 0:12:01.4] } 38. Qxc6 { [%clk 0:12:04.2] } 38... Kg8 { [%clk 0:11:55.6] } 39. Qd5+ { [%clk 0:11:49.5] } 39... Kh7 { [%clk 0:11:53.3] } 40. Qe4+ { [%clk 0:10:54] } 40... Kg8 { [%clk 0:11:49.2] } 41. Re8+ { [%clk 0:10:58.2] } 41... Rxe8 { [%clk 0:11:54.1] } 42. Qxe8+ { [%clk 0:11:06.1] } 42... Kh7 { [%clk 0:12:01] } 43. Qe5 { [%clk 0:11:14.1] } 43... Qd8 { [%clk 0:11:53.8] } 44. Nc4 { [%clk 0:10:47.5] } 44... a4 { [%clk 0:11:58.2] } 45. c6 { [%clk 0:10:55] } 45... Qa8 { [%clk 0:12:03.1] } 46. Qe4+ { [%clk 0:10:56.5] } 46... Kg8 { [%clk 0:12:08.7] } 47. c7 { [%clk 0:11:02.9] } 47... Qc8 { [%clk 0:12:10.4] } 48. Nb6 { [%clk 0:11:10.9] } 48... Qa6 { [%clk 0:11:43.8] } 49. c8=Q+ { [%clk 0:11:16.5] } 49... Qxc8 { [%clk 0:11:28.2] } 50. Nxc8 { [%clk 0:11:23.3] } 50... g5 { [%clk 0:11:33.5] } 51. Qg6+ { [%clk 0:11:13.2] } 51... Kh8 { [%clk 0:11:10.8] } 52. Be5# { [%clk 0:11:10.9] } 1-0

[Event "Live Chess"]
[Site "Chess.com"]
[Date "2021.02.28"]
[Round "-"]
[White "Bhaskar, Sriram"]
[Black "Marenduzzo, Ollie"]
[Result "0-1"]
[BlackElo "1503"]
[CurrentPosition "8/8/7p/2P4P/8/6k1/6p1/4r1K1 w - -"]
[ECO "B01"]
[ECOUrl "https://www.chess.com/openings/Scandinavian-Defense"]
[EndDate "2021.02.28"]
[EndTime "14:35:17"]
[Link "https://www.chess.com/live/game/8260406997"]
[StartTime "14:08:28"]
[Termination "UtmostTiger won by checkmate"]
[TimeControl "1500+10"]
[Timezone "UTC"]
[UTCDate "2021.02.28"]
[UTCTime "14:08:28"]
[WhiteElo "981"]

1. e4 { [%clk 0:25:10] } 1... d5 { [%clk 0:25:10] } 2. d3 { [%clk 0:25:05.4] } 2... dxe4 { [%clk 0:25:15.9] } 3. dxe4 { [%clk 0:25:13.2] } 3... Qxd1+ { [%clk 0:25:23.8] } 4. Kxd1 { [%clk 0:25:12.1] } 4... Nf6 { [%clk 0:25:31.8] } 5. Nc3 { [%clk 0:25:17.9] } 5... e5 { [%clk 0:25:27.7] } 6. Bd3 { [%clk 0:24:54.5] } 6... Bc5 { [%clk 0:25:21.6] } 7. Be3 { [%clk 0:24:56] } 7... Bxe3 { [%clk 0:25:17.9] } 8. fxe3 { [%clk 0:25:02.5] } 8... Nc6 { [%clk 0:25:25.7] } 9. Nd5 { [%clk 0:25:00] } 9... Nxd5 { [%clk 0:25:18.5] } 10. exd5 { [%clk 0:24:27] } 10... Nb4 { [%clk 0:25:24.3] } 11. Bb5+ { [%clk 0:24:30.9] } 11... Bd7 { [%clk 0:25:08.2] } 12. Bxd7+ { [%clk 0:24:29.8] } 12... Kxd7 { [%clk 0:25:16.9] } 13. e4 { [%clk 0:24:34.7] } 13... Rad8 { [%clk 0:25:07.9] } 14. Nf3 { [%clk 0:24:27.8] } 14... f6 { [%clk 0:25:00.1] } 15. g4 { [%clk 0:24:33.2] } 15... c6 { [%clk 0:24:31.1] } 16. c4 { [%clk 0:24:36.3] } 16... Nd3 { [%clk 0:24:17.6] } 17. Ke2 { [%clk 0:24:18.8] } 17... Nf4+ { [%clk 0:23:56.7] } 18. Ke3 { [%clk 0:23:57.4] } 18... Kd6 { [%clk 0:23:56.7] } 19. Rad1 { [%clk 0:23:56.6] } 19... c5 { [%clk 0:23:41.9] } 20. Rhg1 { [%clk 0:23:35.5] } 20... g5 { [%clk 0:23:23.2] } 21. h4 { [%clk 0:23:29] } 21... h6 { [%clk 0:22:51.5] } 22. h5 { [%clk 0:23:16.2] } 22... a6 { [%clk 0:22:09.9] } 23. a4 { [%clk 0:23:11.1] } 23... Rb8 { [%clk 0:22:15.6] } 24. Rb1 { [%clk 0:23:14.5] } 24... b5 { [%clk 0:22:20.4] } 25. cxb5 { [%clk 0:23:16.8] } 25... axb5 { [%clk 0:22:28] } 26. axb5 { [%clk 0:23:24.3] } 26... Rxb5 { [%clk 0:22:36.6] } 27. Nd2 { [%clk 0:23:28.5] } 27... Rhb8 { [%clk 0:22:18] } 28. Nc4+ { [%clk 0:23:28.7] } 28... Kd7 { [%clk 0:22:20.8] } 29. d6 { [%clk 0:22:58.7] } 29... Rb3+ { [%clk 0:22:00.3] } 30. Kd2 { [%clk 0:22:30.3] } 30... R8b4 { [%clk 0:22:02] } 31. Rgc1 { [%clk 0:22:08] } 31... Nd3 { [%clk 0:21:13.8] } 32. Rc3 { [%clk 0:21:54.8] } 32... Rxc3 { [%clk 0:20:54.9] } 33. Kxc3 { [%clk 0:21:55.1] } 33... Nf2 { [%clk 0:20:46.6] } 34. Ne3 { [%clk 0:21:31.6] } 34... Nxe4+ { [%clk 0:20:49.7] } 35. Kd3 { [%clk 0:21:27.4] } 35... Rd4+ { [%clk 0:20:47.7] } 36. Ke2 { [%clk 0:21:17.8] } 36... Nxd6 { [%clk 0:20:42.9] } 37. Rd1 { [%clk 0:21:18.8] } 37... Rxd1 { [%clk 0:20:13.1] } 38. Kxd1 { [%clk 0:21:24.5] } 38... e4 { [%clk 0:20:07.9] } 39. Ke2 { [%clk 0:21:24] } 39... Ke6 { [%clk 0:20:13.3] } 40. Nc2 { [%clk 0:21:19.8] } 40... Ke5 { [%clk 0:20:11.9] } 41. b3 { [%clk 0:21:04.9] } 41... Kf4 { [%clk 0:20:13] } 42. Ne3 { [%clk 0:21:09.1] } 42... f5 { [%clk 0:19:42.4] } 43. gxf5 { [%clk 0:20:34.4] } 43... Nxf5 { [%clk 0:19:50.3] } 44. Ng2+ { [%clk 0:20:28.3] } 44... Kg4 { [%clk 0:19:51.3] } 45. Ne3+ { [%clk 0:20:28.2] } 45... Nxe3 { [%clk 0:19:43.7] } 46. Kxe3 { [%clk 0:20:34.5] } 46... Kf5 { [%clk 0:19:43.6] } 47. Kd2 { [%clk 0:20:39.1] } 47... g4 { [%clk 0:19:48.4] } 48. Ke2 { [%clk 0:20:40.7] } 48... Kf4 { [%clk 0:19:51.4] } 49. Kf2 { [%clk 0:20:48.4] } 49... g3+ { [%clk 0:19:59] } 50. Kf1 { [%clk 0:20:56.2] } 50... Kf3 { [%clk 0:20:06.6] } 51. Kg1 { [%clk 0:20:55.7] } 51... e3 { [%clk 0:20:12.6] } 52. Kf1 { [%clk 0:21:03.1] } 52... g2+ { [%clk 0:20:18.7] } 53. Kg1 { [%clk 0:21:08] } 53... e2 { [%clk 0:20:25.3] } 54. b4 { [%clk 0:21:14.6] } 54... Kg3 { [%clk 0:20:32.8] } 55. bxc5 { [%clk 0:21:18.5] } 55... e1=R# { [%clk 0:20:40.9] } 0-1

[Event "Live Chess"]
[Site "Chess.com"]
[Date "2021.02.28"]
[Round "-"]
[White "Srivastava, Aarav"]
[Black "Singh, Ishaan"]
[Result "1-0"]
[BlackElo "734"]
[CurrentPosition "2k2R2/p6R/8/6p1/8/7P/PPP3PK/r7 b - -"]
[ECO "C44"]
[ECOUrl "https://www.chess.com/openings/Scotch-Game"]
[EndDate "2021.02.28"]
[EndTime "14:11:49"]
[Link "https://www.chess.com/live/game/8259828045"]
[StartTime "13:59:34"]
[Termination "AwesomeTrouble25 won by checkmate"]
[TimeControl "1500+10"]
[Timezone "UTC"]
[UTCDate "2021.02.28"]
[UTCTime "13:59:34"]
[WhiteElo "1705"]

1. e4 { [%clk 0:25:10] } 1... e5 { [%clk 0:25:10] } 2. Nf3 { [%clk 0:25:14.9] } 2... Nc6 { [%clk 0:25:17.3] } 3. d4 { [%clk 0:25:21.3] } 3... d6 { [%clk 0:25:21.1] } 4. Nc3 { [%clk 0:25:22.3] } 4... Be6 { [%clk 0:25:24.4] } 5. d5 { [%clk 0:25:28.7] } 5... Bd7 { [%clk 0:25:04.4] } 6. dxc6 { [%clk 0:25:33.6] } 6... Bxc6 { [%clk 0:25:13.1] } 7. Bc4 { [%clk 0:25:36.4] } 7... Qe7 { [%clk 0:25:06.8] } 8. Ng5 { [%clk 0:25:40.6] } 8... O-O-O { [%clk 0:25:11.9] } 9. Nxf7 { [%clk 0:25:45.5] } 9... Re8 { [%clk 0:24:36.4] } 10. Nxh8 { [%clk 0:25:49.1] } 10... Nf6 { [%clk 0:24:43.8] } 11. Nf7 { [%clk 0:25:54.5] } 11... d5 { [%clk 0:24:49.5] } 12. exd5 { [%clk 0:25:48.6] } 12... Qxf7 { [%clk 0:24:39.1] } 13. dxc6 { [%clk 0:25:41.6] } 13... Qxc4 { [%clk 0:24:47.1] } 14. cxb7+ { [%clk 0:25:42.3] } 14... Kxb7 { [%clk 0:24:53.7] } 15. Qf3+ { [%clk 0:25:49] } 15... e4 { [%clk 0:24:56.2] } 16. Qf5 { [%clk 0:25:25.5] } 16... Be7 { [%clk 0:24:33.1] } 17. Qb5+ { [%clk 0:25:31] } 17... Qxb5 { [%clk 0:24:38] } 18. Nxb5 { [%clk 0:25:36.2] } 18... Bc5 { [%clk 0:24:15.6] } 19. O-O { [%clk 0:25:37.8] } 19... Ng4 { [%clk 0:24:15.1] } 20. Bf4 { [%clk 0:25:26] } 20... e3 { [%clk 0:24:18.3] } 21. Nxc7 { [%clk 0:25:16.3] } 21... exf2+ { [%clk 0:24:25.2] } 22. Kh1 { [%clk 0:25:17.9] } 22... Rf8 { [%clk 0:24:26.5] } 23. Ne6 { [%clk 0:25:16.5] } 23... Rf5 { [%clk 0:24:20] } 24. h3 { [%clk 0:25:15.3] } 24... Ne3 { [%clk 0:24:22.5] } 25. Bxe3 { [%clk 0:25:12.5] } 25... Bxe3 { [%clk 0:24:28.6] } 26. Rad1 { [%clk 0:25:12.5] } 26... g6 { [%clk 0:24:09] } 27. Rd7+ { [%clk 0:25:13.1] } 27... Kc8 { [%clk 0:24:11.4] } 28. Rxh7 { [%clk 0:25:15.8] } 28... Rf6 { [%clk 0:24:07.4] } 29. Nc7 { [%clk 0:24:43.3] } 29... g5 { [%clk 0:23:50.6] } 30. Nd5 { [%clk 0:24:51] } 30... Re6 { [%clk 0:23:52] } 31. Nxe3 { [%clk 0:24:57] } 31... Rxe3 { [%clk 0:24:00] } 32. Rxf2 { [%clk 0:25:05] } 32... Re1+ { [%clk 0:24:08.2] } 33. Kh2 { [%clk 0:25:10.1] } 33... Ra1 { [%clk 0:23:56] } 34. Rf8# { [%clk 0:25:16.4] } 1-0

[Event "Live Chess"]
[Site "Chess.com"]
[Date "2021.02.28"]
[Round "-"]
[White "Bell, Hunter"]
[Black "Lynn, Angelo"]
[Result "0-1"]
[BlackElo "1389"]
[CurrentPosition "4q1k1/p2n1pp1/1p3n1p/8/P2B4/1P4P1/4rP1P/3R1RK1 b - -"]
[ECO "A13"]
[ECOUrl "https://www.chess.com/openings/English-Opening-Agincourt-Defense-2.g3-d5-3.Bg2"]
[EndDate "2021.02.28"]
[EndTime "14:29:15"]
[Link "https://www.chess.com/live/game/8259823019"]
[StartTime "13:59:25"]
[Termination "Angelolynn123 won by resignation"]
[TimeControl "1500+10"]
[Timezone "UTC"]
[UTCDate "2021.02.28"]
[UTCTime "13:59:25"]
[WhiteElo "840"]

1. c4 { [%clk 0:25:10] } 1... e6 { [%clk 0:25:10] } 2. g3 { [%clk 0:24:59.3] } 2... d5 { [%clk 0:25:16.1] } 3. Bg2 { [%clk 0:24:41.8] } 3... Nf6 { [%clk 0:25:16.4] } 4. Nc3 { [%clk 0:23:41.4] } 4... Bc5 { [%clk 0:24:57.9] } 5. e3 { [%clk 0:23:36.5] } 5... b6 { [%clk 0:24:21.6] } 6. cxd5 { [%clk 0:23:15.6] } 6... exd5 { [%clk 0:24:17.1] } 7. Nge2 { [%clk 0:23:03.4] } 7... Bb7 { [%clk 0:24:19] } 8. O-O { [%clk 0:23:03.5] } 8... O-O { [%clk 0:24:25.9] } 9. d4 { [%clk 0:22:50.7] } 9... Be7 { [%clk 0:24:22.6] } 10. e4 { [%clk 0:20:47] } 10... dxe4 { [%clk 0:24:21.5] } 11. Nxe4 { [%clk 0:20:45.3] } 11... Bxe4 { [%clk 0:24:25.1] } 12. Bxe4 { [%clk 0:19:59.3] } 12... Nxe4 { [%clk 0:24:26.2] } 13. Qc2 { [%clk 0:19:56.1] } 13... Nf6 { [%clk 0:24:08.8] } 14. Bg5 { [%clk 0:19:44.2] } 14... Nbd7 { [%clk 0:24:01.7] } 15. Rad1 { [%clk 0:18:47.8] } 15... h6 { [%clk 0:23:17.8] } 16. Bf4 { [%clk 0:17:05.9] } 16... Rc8 { [%clk 0:21:49.6] } 17. b3 { [%clk 0:16:10] } 17... Bd6 { [%clk 0:21:27.8] } 18. Be3 { [%clk 0:15:31.7] } 18... Re8 { [%clk 0:20:05.1] } 19. a4 { [%clk 0:14:51] } 19... Qe7 { [%clk 0:19:44.9] } 20. Nc3 { [%clk 0:13:11.1] } 20... c5 { [%clk 0:19:31.9] } 21. Rfe1 { [%clk 0:13:06.8] } 21... Qf8 { [%clk 0:19:29.1] } 22. Nb5 { [%clk 0:11:52] } 22... cxd4 { [%clk 0:19:29] } 23. Nxd6 { [%clk 0:10:40.3] } 23... Rxc2 { [%clk 0:18:33] } 24. Nxe8 { [%clk 0:10:32] } 24... Qxe8 { [%clk 0:18:30.5] } 25. Bxd4 { [%clk 0:10:37.4] } 25... Re2 { [%clk 0:18:32.3] } 26. Rf1 { [%clk 0:10:34.7] } 0-1